fUST/lending_fUST_20241105
["ID","MTS","AMOUNT","RATE_DAILY","PERIOD"]
[341337560,1730818250351,-521.09045396,0.00030136,3]
[341337561,1730818250361,-507.25535629,0.00030136,3]
[341337562,1730818250371,-500.00000001,0.00030136,3]
[341337563,1730818250381,-500.0,0.00030136,3]
[341337564,1730818250391,-507.09088254,0.00030136,3]
[341337565,1730818250401,-500.0,0.00030136,3]
[341337566,1730818250411,-500.0,0.00030136,3]
[341337567,1730818250421,-441.938251,0.00030136,3]
[341337568,1730818250430,-500.0,0.00030136,3]
[341337569,1730818250439,-508.73717139,0.00030136,3]
[341337570,1730818250449,-500.0,0.00030136,3]
[341337571,1730818250458,-513.30291869,0.00030136,3]
[341337572,1730818250467,-506.34650998,0.00030136,3]
[341337573,1730818250476,-560.50390433,0.00030136,3]
[341337574,1730818250486,-500.0,0.00030136,3]
[341337575,1730818250495,-500.0,0.00030136,3]
[341337576,1730818250505,-500.0,0.00030136,3]
[341337577,1730818250514,-500.0,0.00030136,3]
[341337578,1730818250523,-286.82937528,0.00030136,3]
[341337579,1730818250533,-500.0,0.00030136,3]
[341337580,1730818250542,-6430.77,0.00030136,3]
[341337581,1730818250555,-500.0,0.00030136,3]
[341337582,1730818250564,-501.96729696,0.00030136,3]
[341337583,1730818250573,-505.92908665,0.00030136,3]
[341337584,1730818250583,-500.0,0.00030136,3]
[341337585,1730818250592,-500.0,0.00030136,2]
[341337586,1730818250602,-536.46,0.00030136,3]
[341337587,1730818250612,-500.0,0.00030136,3]
[341337588,1730818250623,-500.0,0.00030136,3]
[341337589,1730818250632,-500.0,0.00030136,3]
[341337590,1730818250641,-1182.57,0.00030136,3]
[341337591,1730818250651,-500.0,0.00030136,3]
[341337592,1730818250660,-500.0,0.00030136,3]
[341337593,1730818250670,-500.0,0.00030136,3]
[341337594,1730818250684,-500.0,0.00030136,3]
[341337595,1730818250693,-500.0,0.00030136,3]
[341337596,1730818250703,-500.0,0.00030136,3]
[341337597,1730818250712,-500.0,0.00030136,3]
[341337598,1730818250721,-500.0,0.00030136,3]
[341337599,1730818250731,-500.0,0.00030136,3]
[341337600,1730818250740,-500.0,0.00030136,3]
[341337601,1730818250750,-503.29479077,0.00030136,3]
[341337602,1730818250759,-500.0,0.00030136,3]
[341337603,1730818250769,-500.0,0.00030136,3]
[341337604,1730818250778,-500.0,0.00030136,3]
[341337605,1730818250788,-500.0,0.00030136,3]
[341337606,1730818250798,-500.0,0.00030136,3]
[341337607,1730818250807,-4342.61,0.00030136,3]
[341337608,1730818250817,-500.0,0.00030136,3]
[341337609,1730818250826,-500.0,0.00030136,3]
[341337610,1730818250835,-150.12,0.00030136,3]
[341337611,1730818250845,-500.0,0.00030136,3]
[341337612,1730818250855,-207.42981689,0.00030136,3]
[341337613,1730818250864,-500.0,0.00030136,3]
[341337614,1730818250873,-500.0,0.00030136,3]
[341337615,1730818250883,-500.0,0.00030136,3]
[341337616,1730818250892,-500.0,0.00030136,3]
[341337618,1730818250901,-500.0,0.00030136,3]
[341337620,1730818250911,-500.0,0.00030136,3]
[341337622,1730818250920,-500.0,0.00030136,3]
[341337624,1730818250930,-504.85956342,0.00030136,3]
[341337626,1730818250940,-2792.42,0.00030136,3]
[341337628,1730818250949,-500.0,0.00030136,3]
[341337630,1730818250959,-500.0,0.00030136,3]
[341337632,1730818250968,-500.0,0.00030136,3]
[341337634,1730818250978,-505.70262019,0.00030136,3]
[341337636,1730818250988,-500.0,0.00030136,3]
[341337638,1730818250997,-10907.81,0.00030136,3]
[341337640,1730818251007,-503.39229126,0.00030136,3]
[341337642,1730818251016,-500.0,0.00030136,3]
[341337644,1730818251025,-500.0,0.00030136,3]
[341337646,1730818251035,-500.0,0.00030136,3]
[341337648,1730818251045,-500.0,0.00030136,3]
[341337650,1730818251054,-500.0,0.00030136,3]
[341337652,1730818251065,-1203.2,0.00030136,3]
[341337654,1730818251074,-570.12549577,0.00030136,3]
[341337656,1730818251083,-510.97613645,0.00030136,3]
[341337658,1730818251092,-504.76226541,0.00030136,3]
[341337668,1730818251167,-500.0,0.00030136,3]
[341337670,1730818251181,-514.11427911,0.00030136,3]
[341337672,1730818251191,-500.0,0.00030136,3]
[341337674,1730818251200,-2294.71,0.00030136,3]
[341337676,1730818251209,-500.0,0.00030136,3]
[341337678,1730818251218,-500.0,0.00030136,3]
[341337680,1730818251229,-1321.17,0.00030136,3]
[341337682,1730818251241,-500.0,0.00030136,3]
[341337684,1730818251250,-500.0,0.00030136,3]
[341337685,1730818251261,-500.0,0.00030136,3]
[341337686,1730818251271,-500.0,0.00030136,3]
[341337687,1730818251282,-500.0,0.00030136,3]
[341337688,1730818251291,-508.98833859,0.00030136,3]
[341337689,1730818251302,-500.0,0.00030136,3]
[341337690,1730818251313,-505.8211072,0.00030136,3]
[341337691,1730818251323,-151.0,0.00030136,7]
[341337693,1730818251332,-500.0,0.00030136,3]
[341337694,1730818251341,-151.0,0.00030136,7]
[341337697,1730818251351,-228.442535,0.00030136,7]
[341337699,1730818251361,-610.70831622,0.00030136,3]
[341337701,1730818251370,-500.0,0.00030136,3]
[341337703,1730818251379,-2053.35,0.00030136,3]
[341337705,1730818251389,-500.0,0.00030136,3]
[341337707,1730818251398,-500.0,0.00030136,3]
[341337709,1730818251407,-655.41,0.00030136,3]
[341337711,1730818251416,-507.53850028,0.00030136,3]
[341337713,1730818251426,-500.0,0.00030136,3]
[341337715,1730818251435,-500.0,0.00030136,3]
[341337717,1730818251444,-500.0,0.00030136,3]
[341337719,1730818251453,-537.41493213,0.00030136,3]
[341337720,1730818251463,-500.0,0.00030136,3]
[341337723,1730818251473,-507.48779219,0.00030136,3]
[341337725,1730818251482,-502.01751329,0.00030136,3]
[341337727,1730818251491,-500.0,0.00030136,3]
[341337729,1730818251500,-500.0,0.00030136,3]
[341337730,1730818251509,-500.0,0.00030136,3]
[341337733,1730818251518,-1368.03,0.00030136,3]
[341337735,1730818251528,-500.0,0.00030136,3]
[341337737,1730818251537,-397.48349092,0.00030136,3]
[341337739,1730818251548,-500.0,0.00030136,3]
[341337741,1730818251557,-500.0,0.00030136,3]
[341337743,1730818251567,-500.0,0.00030136,3]
[341337745,1730818251576,-500.0,0.00030136,3]
[341337747,1730818251585,-500.0,0.00030136,3]
[341337749,1730818251595,-500.0,0.00030136,3]
[341337751,1730818251604,-503.08659347,0.00030136,3]
[341337753,1730818251613,-500.0,0.00030136,3]
[341337755,1730818251622,-500.0,0.00030136,3]
[341337757,1730818251631,-500.0,0.00030136,3]
[341337759,1730818251641,-500.0,0.00030136,3]
[341337761,1730818251650,-500.0,0.00030136,3]
[341337763,1730818251659,-500.0,0.00030136,3]
[341337765,1730818251669,-504.31928706,0.00030136,3]
[341337767,1730818251678,-527.22244172,0.00030136,3]
[341337769,1730818251687,-601.61,0.00030136,3]
[341337771,1730818251696,-500.0,0.00030136,3]
[341337773,1730818251706,-500.0,0.00030136,3]
[341337775,1730818251715,-500.0,0.00030136,3]
[341337777,1730818251724,-500.0,0.00030136,3]
[341337779,1730818251733,-500.0,0.00030136,3]
[341337781,1730818251742,-505.36495048,0.00030136,3]
[341337783,1730818251751,-500.0,0.00030136,3]
[341337785,1730818251759,-500.0,0.00030136,3]
[341337787,1730818251769,-500.0,0.00030136,3]
[341337789,1730818251779,-610.80245127,0.00030136,3]
[341337791,1730818251788,-500.0,0.00030136,3]
[341337793,1730818251801,-500.0,0.00030136,3]
[341337795,1730818251810,-500.0,0.00030136,3]
[341337797,1730818251820,-331.81604586,0.00030136,3]
[341337799,1730818251830,-500.0,0.00030136,3]
[341337801,1730818251839,-500.0,0.00030136,2]
[341337803,1730818251849,-500.0,0.00030136,3]
[341337805,1730818251859,-800.4,0.00030136,3]
[341337807,1730818251869,-500.0,0.00030136,3]
[341337809,1730818251879,-500.0,0.00030136,3]
[341337811,1730818251888,-500.0,0.00030136,3]
[341337813,1730818251898,-500.0,0.00030136,3]
[341337815,1730818251907,-503.53941776,0.00030136,3]
[341337817,1730818251916,-500.0,0.00030136,3]
[341337819,1730818251926,-836.82492546,0.00030136,3]
[341337821,1730818251935,-500.0,0.00030136,3]
[341337824,1730818251944,-500.0,0.00030136,3]
[341337826,1730818251954,-507.1581019,0.00030136,3]
[341337827,1730818251963,-500.0,0.00030136,3]
[341337830,1730818251973,-500.0,0.00030136,3]
[341337832,1730818251982,-503.94346024,0.00030136,3]
[341337833,1730818251991,-500.0,0.00030136,3]
[341337836,1730818252001,-464.96637804,0.00030136,3]
[341337838,1730818252011,-500.0,0.00030136,3]
[341337840,1730818252020,-175.55870432,0.00030137,2]
[341337842,1730818252030,-1899.81237125,0.00030166,2]
[341337844,1730818252040,-500.0,0.00030173,5]
[341337846,1730818252051,-500.0,0.00030173,5]
[341337848,1730818252061,-500.0,0.00030173,5]
[341337850,1730818252071,-500.0,0.00030173,5]
[341337852,1730818252079,-500.0,0.00030173,5]
[341337854,1730818252089,-500.0,0.00030173,5]
[341337856,1730818252099,-500.0,0.00030173,5]
[341337858,1730818252109,-501.4356543,0.00030173,5]
[341337860,1730818252118,-502.79087601,0.00030173,5]
[341337862,1730818252128,-396.448526,0.00030173,5]
[341337864,1730818252138,-500.0,0.00030173,5]
[341337866,1730818252148,-160.53207541,0.00030173,5]
[341337868,1730818252159,-588.27,0.000302,14]
[341337870,1730818252168,-150.12,0.0003041,3]
[341337872,1730818252178,-500.0,0.0003041,3]
[341337874,1730818252187,-500.0,0.0003041,3]
[341337876,1730818252196,-500.0,0.0003041,3]
[341337878,1730818252206,-647.39975741,0.0003041,3]
[341337881,1730818252216,-500.0,0.0003041,3]
[341337883,1730818252225,-1004.84135951,0.0003041,3]
[341337885,1730818252236,-500.0,0.0003041,3]
[341337887,1730818252246,-505.64526274,0.0003041,3]
[341337889,1730818252256,-593.12653064,0.0003041,3]
[341337891,1730818252265,-500.0,0.0003041,3]
[341337893,1730818252277,-522.15716001,0.0003041,3]
[341337895,1730818252287,-509.22250535,0.0003041,3]
[341337897,1730818252296,-506.21729126,0.0003041,3]
[341337899,1730818252310,-500.0,0.0003041,3]
[341337901,1730818252319,-500.0,0.0003041,3]
[341337903,1730818252328,-500.0,0.0003041,3]
[341337905,1730818252338,-488.72863006,0.0003041,3]
[341337907,1730818252348,-500.0,0.0003041,3]
[341337909,1730818252357,-250.0,0.0003041,3]
[341337911,1730818252367,-507.37052606,0.0003041,3]
[341337919,1730818252431,-527.85695948,0.0003041,3]
[341337921,1730818252440,-500.0,0.0003041,3]
[341337923,1730818252449,-500.0,0.0003041,3]
[341337925,1730818252459,-500.0,0.0003041,3]
[341337927,1730818252469,-500.0,0.0003041,3]
[341337929,1730818252479,-500.0,0.0003041,3]
[341337931,1730818252489,-500.0,0.0003041,3]
[341337933,1730818252498,-500.0,0.0003041,3]
[341337935,1730818252507,-500.0,0.0003041,3]
[341337937,1730818252516,-500.0,0.0003041,3]
[341337939,1730818252526,-515.4668376,0.0003041,3]
[341337941,1730818252535,-500.0,0.0003041,3]
[341337943,1730818252545,-367.9016132,0.0003041,3]
[341337945,1730818252558,-500.0,0.0003041,3]
[341337947,1730818252567,-505.70423791,0.0003041,3]
[341337950,1730818252578,-500.0,0.0003041,3]
[341337952,1730818252588,-500.0,0.0003041,3]
[341337954,1730818252598,-500.0,0.0003041,3]
[341337956,1730818252612,-521.16735338,0.0003041,3]
[341337958,1730818252622,-500.0,0.0003041,3]
[341337960,1730818252632,-500.0,0.0003041,3]
[341337962,1730818252642,-500.0,0.0003041,3]
[341337964,1730818252652,-511.86101274,0.0003041,3]
[341337966,1730818252662,-511.94939734,0.0003041,3]
[341337968,1730818252673,-500.0,0.0003041,3]
[341337970,1730818252682,-500.0,0.0003041,3]
[341337972,1730818252692,-500.0,0.0003041,3]
[341337974,1730818252702,-500.0,0.0003041,3]
[341337977,1730818252712,-500.0,0.0003041,3]
[341337979,1730818252722,-500.0,0.0003041,3]
[341337981,1730818252732,-500.0,0.0003041,3]
[341337982,1730818252741,-500.0,0.0003041,3]
[341337984,1730818252751,-500.0,0.0003041,3]
[341337986,1730818252761,-500.0,0.0003041,3]
[341337989,1730818252771,-500.0,0.0003041,3]
[341337991,1730818252781,-547.14427751,0.0003041,3]
[341337993,1730818252791,-511.79546173,0.0003041,3]
[341337995,1730818252805,-500.0,0.0003041,3]
[341337997,1730818252814,-500.0,0.0003041,3]
[341337999,1730818252824,-511.95879681,0.0003041,3]
[341338001,1730818252833,-500.0,0.0003041,3]
[341338003,1730818252844,-500.0,0.0003041,3]
[341338005,1730818252853,-500.0,0.0003041,3]
[341338007,1730818252863,-500.0,0.0003041,3]
[341338009,1730818252873,-500.0,0.0003041,3]
[341338011,1730818252883,-507.78633003,0.0003041,3]
[341338013,1730818252893,-500.0,0.0003041,3]
[341338015,1730818252903,-500.0,0.0003041,3]
[341338017,1730818252912,-500.0,0.0003041,3]
[341338019,1730818252922,-500.0,0.0003041,3]
[341338021,1730818252931,-500.0,0.0003041,3]
[341338023,1730818252940,-516.67308479,0.0003041,3]
[341338025,1730818252949,-500.0,0.0003041,3]
[341338027,1730818252959,-512.66384961,0.0003041,3]
[341338029,1730818252968,-534.0922771,0.0003041,3]
[341338031,1730818252978,-500.0,0.0003041,3]
[341338033,1730818252987,-500.0,0.0003041,3]
[341338035,1730818252998,-500.0,0.0003041,3]
[341338037,1730818253012,-500.0,0.0003041,3]
[341338040,1730818253030,-500.0,0.0003041,3]
[341338043,1730818253045,-500.0,0.0003041,3]
[341338045,1730818253061,-519.78140819,0.0003041,3]
[341338048,1730818253077,-508.04778814,0.0003041,3]
[341338051,1730818253094,-509.1385416,0.0003041,3]
[341338054,1730818253110,-500.0,0.0003041,3]
[341338057,1730818253125,-587.48662702,0.0003041,3]
[341338059,1730818253141,-500.0,0.0003041,3]
[341338062,1730818253158,-500.0,0.0003041,3]
[341338065,1730818253175,-500.0,0.0003041,3]
[341338067,1730818253189,-500.0,0.0003041,3]
[341338070,1730818253201,-500.0,0.0003041,3]
[341338072,1730818253214,-500.0,0.0003041,3]
[341338074,1730818253232,-500.0,0.0003041,3]
[341338077,1730818253248,-500.0,0.0003041,3]
[341338080,1730818253262,-500.0,0.0003041,3]
[341338082,1730818253278,-6430.77,0.0003041,3]
[341338085,1730818253292,-500.0,0.0003041,3]
[341338087,1730818253306,-500.0,0.0003041,3]
[341338089,1730818253319,-500.0,0.0003041,2]
[341338092,1730818253335,-536.46,0.0003041,3]
[341338094,1730818253350,-524.34071246,0.0003041,3]
[341338097,1730818253365,-516.19330286,0.0003041,3]
[341338100,1730818253378,-500.0,0.0003041,3]
[341338102,1730818253391,-1182.57,0.0003041,3]
[341338104,1730818253404,-500.0,0.0003041,3]
[341338107,1730818253417,-500.0,0.0003041,3]
[341338109,1730818253429,-500.0,0.0003041,3]
[341338111,1730818253442,-500.0,0.0003041,3]
[341338114,1730818253454,-511.9036792,0.0003041,3]
[341338116,1730818253468,-505.41932999,0.0003041,3]
[341338118,1730818253480,-500.0,0.0003041,3]
[341338120,1730818253492,-334.34048264,0.0003041,3]
[341338123,1730818253504,-500.0,0.0003041,3]
[341338125,1730818253518,-500.0,0.0003041,3]
[341338128,1730818253532,-500.0,0.0003041,3]
[341338130,1730818253544,-500.0,0.0003041,3]
[341338133,1730818253559,-500.0,0.0003041,3]
[341338135,1730818253574,-4342.61,0.0003041,3]
[341338138,1730818253586,-281.60625437,0.0003041,3]
[341338140,1730818253599,-500.0,0.0003041,3]
[341338142,1730818253610,-500.0,0.0003041,3]
[341338145,1730818253622,-500.0,0.0003041,3]
[341338147,1730818253635,-513.03472779,0.0003041,3]
[341338149,1730818253646,-500.0,0.0003041,3]
[341338151,1730818253658,-500.0,0.0003041,3]
[341338154,1730818253670,-500.0,0.0003041,3]
[341338156,1730818253682,-500.0,0.0003041,3]
[341338158,1730818253694,-2792.42,0.0003041,3]
[341338161,1730818253707,-500.0,0.0003041,3]
[341338163,1730818253720,-500.0,0.0003041,3]
[341338165,1730818253733,-500.0,0.0003041,3]
[341338168,1730818253747,-500.0,0.0003041,3]
[341338170,1730818253757,-500.0,0.0003041,3]
[341338171,1730818253767,-10907.81,0.0003041,3]
[341338184,1730818253876,-500.0,0.0003041,3]
[341338186,1730818253892,-567.24653608,0.0003041,3]
[341338188,1730818253902,-500.0,0.0003041,3]
[341338190,1730818253912,-500.0,0.0003041,3]
[341338192,1730818253922,-500.0,0.0003041,3]
[341338194,1730818253931,-1203.2,0.0003041,3]
[341338196,1730818253940,-500.0,0.0003041,3]
[341338198,1730818253949,-500.0,0.0003041,3]
[341338200,1730818253958,-2294.71,0.0003041,3]
[341338202,1730818253968,-500.0,0.0003041,3]
[341338204,1730818253978,-500.0,0.0003041,3]
[341338206,1730818253987,-1321.17,0.0003041,3]
[341338208,1730818253997,-500.0,0.0003041,3]
[341338210,1730818254007,-500.0,0.0003041,3]
[341338212,1730818254016,-369.45442993,0.0003041,3]
[341338214,1730818254025,-500.0,0.0003041,3]
[341338216,1730818254035,-500.0,0.0003041,3]
[341338218,1730818254044,-500.0,0.0003041,3]
[341338220,1730818254056,-500.0,0.0003041,3]
[341338222,1730818254065,-2053.35,0.0003041,3]
[341338224,1730818254075,-500.0,0.0003041,3]
[341338226,1730818254085,-421.58241928,0.0003041,3]
[341338229,1730818254095,-1000.0,0.0003041,28]
[341338231,1730818254106,-697.52966709,0.0003041,28]
[341338232,1730818254115,-655.41,0.0003041,3]
[341338234,1730818254124,-500.0,0.0003041,3]
[341338236,1730818254134,-500.0,0.0003041,3]
[341338238,1730818254144,-500.0,0.0003041,3]
[341338241,1730818254153,-500.0,0.0003041,3]
[341338243,1730818254163,-500.0,0.0003041,3]
[341338245,1730818254172,-500.0,0.0003041,3]
[341338247,1730818254182,-500.0,0.0003041,3]
[341338249,1730818254192,-1368.03,0.0003041,3]
[341338251,1730818254201,-500.0,0.0003041,3]
[341338253,1730818254210,-500.0,0.0003041,3]
[341338255,1730818254219,-582.67094729,0.0003041,3]
[341338257,1730818254230,-500.0,0.0003041,3]
[341338259,1730818254245,-167.34722552,0.0003041,3]
[341338261,1730818254254,-507.80192416,0.0003041,3]
[341338263,1730818254264,-500.0,0.0003041,3]
[341338265,1730818254273,-500.0,0.0003041,3]
[341338267,1730818254283,-500.0,0.0003041,3]
[341338269,1730818254293,-500.0,0.0003041,3]
[341338271,1730818254309,-500.0,0.0003041,3]
[341338273,1730818254318,-500.0,0.0003041,3]
[341338275,1730818254327,-500.0,0.0003041,3]
[341338277,1730818254337,-500.0,0.0003041,3]
[341338279,1730818254346,-601.61,0.0003041,3]
[341338281,1730818254356,-500.0,0.0003041,3]
[341338284,1730818254366,-513.81338119,0.0003041,3]
[341338286,1730818254376,-500.0,0.0003041,3]
[341338288,1730818254386,-506.15754707,0.0003041,3]
[341338290,1730818254395,-500.0,0.0003041,3]
[341338292,1730818254406,-500.0,0.0003041,3]
[341338294,1730818254415,-500.0,0.0003041,3]
[341338296,1730818254425,-500.0,0.0003041,3]
[341338298,1730818254434,-500.0,0.0003041,3]
[341338300,1730818254444,-500.0,0.0003041,3]
[341338302,1730818254454,-154.8135434,0.0003041,2]
[341338304,1730818254463,-500.0,0.0003041,3]
[341338306,1730818254473,-800.4,0.0003041,3]
[341338308,1730818254483,-544.26047387,0.0003041,3]
[341338310,1730818254493,-508.43678774,0.0003041,3]
[341338312,1730818254502,-500.0,0.0003041,3]
[341338314,1730818254512,-500.0,0.0003041,3]
[341338316,1730818254522,-500.0,0.0003041,3]
[341338318,1730818254531,-507.77235297,0.0003041,3]
[341338320,1730818254541,-500.0,0.0003041,3]
[341338322,1730818254552,-500.0,0.0003041,3]
[341338324,1730818254562,-516.6571426,0.0003041,3]
[341338326,1730818254572,-500.0,0.0003041,3]
[341338328,1730818254582,-345.25821039,0.0003041,3]
[341338330,1730818254591,-152.0,0.00030411,2]
[341338332,1730818254600,-500.0,0.00030473,5]
[341338334,1730818254610,-153.0,0.00030493,30]
[341338336,1730818254619,-214.2738971,0.00030493,30]
[341338338,1730818254629,-306.3571712,0.00030493,30]
[341338340,1730818254638,-153.0,0.00030493,30]
[341338342,1730818254647,-153.0,0.00030493,30]
[341338344,1730818254657,-153.0,0.00030493,30]
[341338346,1730818254666,-153.0,0.00030493,30]
[341338348,1730818254676,-153.0,0.00030493,30]
[341338350,1730818254686,-153.0,0.00030493,30]
[341338352,1730818254695,-153.0,0.00030493,30]
[341338354,1730818254704,-201.6196396,0.00030493,30]
[341338356,1730818254713,-454.3690161,0.00030493,30]
[341338358,1730818254723,-1729.15,0.000305,30]
[341338360,1730818254732,-2336.19,0.000305,30]
[341338362,1730818254742,-903.34,0.000305,14]
[341338364,1730818254751,-3579.41,0.000305,14]
[341338366,1730818254761,-232.0599,0.000305,120]
[341338368,1730818254771,-766.00723,0.00030637,2]
[341338369,1730818254780,-507.613632,0.00030637,2]
[341338371,1730818254791,-258.194289,0.00030637,2]
[341338374,1730818254804,-245.11727,0.00030637,2]
[341338376,1730818254814,-166.907267,0.00030637,2]
[341338378,1730818254825,-202.92650574,0.00030684,3]
[341338380,1730818254834,-500.0,0.00030684,3]
[341338382,1730818254845,-500.0,0.00030684,3]
[341338384,1730818254854,-458.61364873,0.00030684,3]
[341338386,1730818254863,-500.0,0.00030684,3]
[341338388,1730818254872,-513.74163305,0.00030684,3]
[341338390,1730818254882,-539.60071504,0.00030684,3]
[341338391,1730818254891,-186.70719545,0.00030684,3]
[341338393,1730818254900,-500.0,0.00030684,3]
[341338396,1730818254920,-500.0,0.00030684,3]
[341338399,1730818254931,-250.0,0.00030684,3]
[341338401,1730818254941,-521.00032418,0.00030684,3]
[341338403,1730818254951,-500.0,0.00030684,3]
[341338405,1730818254961,-500.0,0.00030684,3]
[341338407,1730818254971,-500.0,0.00030684,3]
[341338409,1730818254981,-500.0,0.00030684,3]
[341338411,1730818254991,-500.0,0.00030684,3]
[341338413,1730818255002,-500.0,0.00030684,3]
[341338415,1730818255013,-500.0,0.00030684,3]
[341338417,1730818255022,-515.89710355,0.00030684,3]
[341338419,1730818255032,-500.0,0.00030684,3]
[341338421,1730818255042,-506.55756938,0.00030684,3]
[341338423,1730818255055,-500.0,0.00030684,3]
[341338425,1730818255064,-500.0,0.00030684,3]
[341338427,1730818255074,-295.01793176,0.00030684,3]
[341338430,1730818255083,-500.0,0.00030684,3]
[341338432,1730818255093,-514.89109709,0.00030684,3]
[341338434,1730818255103,-500.0,0.00030684,3]
[341338436,1730818255113,-500.0,0.00030684,3]
[341338438,1730818255122,-187.71240814,0.00030684,3]
[341338440,1730818255132,-500.0,0.00030684,3]
[341338442,1730818255142,-500.0,0.00030684,3]
[341338444,1730818255151,-500.0,0.00030684,3]
[341338446,1730818255161,-500.0,0.00030684,3]
[341338448,1730818255171,-500.0,0.00030684,3]
[341338450,1730818255180,-500.0,0.00030684,3]
[341338452,1730818255191,-510.57472583,0.00030684,3]
[341338454,1730818255202,-500.0,0.00030684,3]
[341338456,1730818255212,-500.0,0.00030684,3]
[341338458,1730818255222,-500.0,0.00030684,3]
[341338460,1730818255236,-500.0,0.00030684,3]
[341338462,1730818255247,-500.0,0.00030684,3]
[341338464,1730818255258,-500.0,0.00030684,3]
[341338466,1730818255270,-500.0,0.00030684,3]
[341338468,1730818255280,-500.0,0.00030684,3]
[341338470,1730818255291,-500.0,0.00030684,3]
[341338473,1730818255304,-500.0,0.00030684,3]
[341338475,1730818255318,-500.0,0.00030684,3]
[341338477,1730818255329,-500.0,0.00030684,3]
[341338479,1730818255339,-500.0,0.00030684,3]
[341338481,1730818255349,-512.18699257,0.00030684,3]
[341338483,1730818255359,-500.0,0.00030684,3]
[341338485,1730818255369,-500.0,0.00030684,3]
[341338487,1730818255378,-500.0,0.00030684,3]
[341338489,1730818255389,-500.0,0.00030684,3]
[341338491,1730818255399,-500.0,0.00030684,3]
[341338493,1730818255409,-500.0,0.00030684,3]
[341338495,1730818255419,-500.0,0.00030684,3]
[341338497,1730818255428,-274.29791292,0.00030684,3]
[341338499,1730818255438,-500.0,0.00030684,3]
[341338501,1730818255447,-500.0,0.00030684,3]
[341338503,1730818255457,-500.0,0.00030684,3]
[341338505,1730818255466,-6430.77,0.00030684,3]
[341338507,1730818255476,-500.0,0.00030684,3]
[341338509,1730818255486,-500.0,0.00030684,3]
[341338511,1730818255496,-500.0,0.00030684,2]
[341338513,1730818255506,-536.46,0.00030684,3]
[341338515,1730818255516,-500.0,0.00030684,3]
[341338518,1730818255526,-1182.57,0.00030684,3]
[341338520,1730818255536,-500.0,0.00030684,3]
[341338522,1730818255545,-500.0,0.00030684,3]
[341338524,1730818255558,-500.0,0.00030684,3]
[341338525,1730818255568,-500.0,0.00030684,3]
[341338527,1730818255578,-500.0,0.00030684,3]
[341338529,1730818255587,-500.0,0.00030684,3]
[341338532,1730818255599,-500.0,0.00030684,3]
[341338543,1730818255701,-500.0,0.00030684,3]
[341338546,1730818255715,-500.0,0.00030684,3]
[341338548,1730818255726,-500.0,0.00030684,3]
[341338550,1730818255735,-4342.61,0.00030684,3]
[341338552,1730818255748,-500.0,0.00030684,3]
[341338554,1730818255759,-527.14060108,0.00030684,3]
[341338556,1730818255769,-500.0,0.00030684,3]
[341338558,1730818255778,-515.17693217,0.00030684,3]
[341338560,1730818255787,-515.40801398,0.00030684,3]
[341338562,1730818255796,-500.0,0.00030684,3]
[341338564,1730818255808,-500.0,0.00030684,3]